bitfinex-derivatives/quotes_BTCF0:USTF0_20250422
["timestamp","ask_amount","ask_price","bid_price","bid_amount"]
[1745337545048,0.1807,90926.0,90925.0,0.4707015]
[1745337545351,0.6807,90926.0,90925.0,0.4697015]
[1745337545942,0.6817,90926.0,90925.0,0.4697015]
[1745337546143,0.6857,90926.0,90925.0,0.4697015]
[1745337546351,0.6857,90926.0,90925.0,0.6374015]
[1745337546352,0.68592518,90926.0,90925.0,0.6374015]
[1745337546551,0.18592518,90926.0,90925.0,0.6374015]
[1745337548453,0.00522518,90926.0,90925.0,0.6374015]
[1745337549249,0.00522518,90926.0,90925.0,0.8294015]
[1745337549851,1e-07,90929.0,90928.0,0.1098979]
[1745337550063,1e-07,90929.0,90928.0,0.4706979]
[1745337550257,1e-07,90929.0,90928.0,1.2420739]
[1745337550456,1e-07,90929.0,90928.0,0.4686979]
[1745337551162,1e-07,90929.0,90928.0,0.6606979]
[1745337551561,0.0010001,90929.0,90928.0,0.6606979]
[1745337552257,0.1659,90949.0,90948.0,0.1098737]
[1745337552458,0.00808098,90952.0,90951.0,0.1098701]
[1745337552656,0.1659,90958.0,90953.0,0.1098672]
[1745337552858,0.1659,90958.0,90957.0,0.1098628]
[1745337553455,0.52584,90958.0,90948.0,0.000165]
[1745337553653,1.03608266,90958.0,90948.0,0.000165]
[1745337553859,0.2339318,90957.0,90948.0,0.000165]
[1745337554058,0.179,90957.0,90948.0,0.000165]
[1745337554260,0.1782,90956.0,90948.0,0.000165]
[1745337554555,0.1782,90956.0,90955.0,0.1098653]
[1745337555364,0.01015959,90957.0,90956.0,0.109864]
[1745337555750,0.01015959,90957.0,90956.0,0.472764]
[1745337556052,0.00815959,90957.0,90956.0,0.290964]
[1745337556254,0.3572,90958.0,90957.0,0.1098628]
[1745337557458,0.000165,90967.0,90958.0,0.1098616]
[1745337557856,0.1676,90966.0,90958.0,0.1078616]
[1745337558049,1e-08,90959.0,90958.0,0.2998616]
[1745337558260,0.067,91000.0,90999.0,0.1098121]
[1745337558454,0.067,91000.0,90993.0,0.0549093]
[1745337558659,0.3473,90999.0,90979.0,0.3588]
[1745337558954,0.3608,90996.0,90987.0,0.0549133]
[1745337559154,0.3473,90995.0,90979.0,0.3588]
[1745337559465,0.5,90992.0,90988.0,0.1098253]
[1745337559654,0.3628,90991.0,90990.0,0.109823]
[1745337559861,0.3628,90991.0,90982.0,0.00016491]
[1745337560056,0.109908,90990.0,90982.0,0.00016491]
[1745337560460,0.460008,90989.0,90988.0,0.1098254]
[1745337560655,0.460004,90989.0,90988.0,0.1098254]
[1745337560854,0.710004,90989.0,90988.0,0.1098254]
[1745337562159,0.710004,90989.0,90987.0,0.001]
[1745337562160,0.710004,90989.0,90986.0,0.1098271]
[1745337562362,0.109904,90988.0,90982.0,0.00016491]
[1745337562561,0.3501,90989.0,90982.0,0.00016491]
[1745337562752,0.5125,90987.0,90982.0,0.00016491]
[1745337562953,0.5125,90987.0,90982.0,0.05508091]
[1745337563152,0.5125,90987.0,90986.0,0.1098278]
[1745337563560,0.622408,90987.0,90986.0,0.1098278]
[1745337564360,0.622408,90987.0,90986.0,0.1108278]
[1745337564769,0.872408,90987.0,90986.0,0.001]
[1745337564967,0.9822346,90987.0,90986.0,0.001]
[1745337565153,0.872408,90987.0,90982.0,0.10999701]
[1745337565357,0.3608,90984.0,90982.0,0.00016491]
[1745337565570,0.44351201,90983.0,90982.0,0.10999761]
[1745337565952,0.44351201,90983.0,90978.0,0.1098375]
[1745337566153,0.3336,90983.0,90728.0,0.192]
[1745337566358,0.3336,90983.0,90970.0,0.0549233]
[1745337566560,0.3336,90983.0,90980.0,0.1098346]
[1745337566761,0.6733,90987.0,90986.0,0.1098278]
[1745337566762,0.5,90987.0,90986.0,0.1098278]
[1745337566962,0.181,90998.0,90982.0,0.0549159]
[1745337567160,0.3475,90998.0,90992.0,0.3608]
[1745337567368,0.3475,90998.0,90983.0,0.3509]
[1745337567556,0.3475,90998.0,90991.0,0.3608]
[1745337567865,0.3475,90998.0,90997.0,0.1098145]
[1745337568065,0.181,90998.0,90997.0,0.1098145]
[1745337568561,0.3475,90998.0,90997.0,0.1098145]
[1745337568863,0.3475,90998.0,90995.0,0.3608]
[1745337569057,0.3475,90998.0,90997.0,0.003]
[1745337569257,0.3475,90998.0,90997.0,0.1128145]
[1745337569868,0.3475,90998.0,90997.0,0.2883145]
[1745337570069,0.067,91000.0,90998.0,0.1098133]
[1745337570272,0.01477009,91000.0,90999.0,0.1098121]
[1745337570461,0.01477009,91000.0,90999.0,0.2853121]
[1745337570765,0.01477009,91000.0,90999.0,0.4636121]
[1745337570968,0.01477009,91000.0,90999.0,0.5363]
[1745337571167,0.18577009,91000.0,90999.0,0.5363]
[1745337571363,0.36827009,91000.0,90999.0,0.5363]
[1745337571567,0.36827009,91000.0,90999.0,0.6491121]
[1745337571769,0.18577009,91000.0,90999.0,0.6491121]
[1745337571966,0.02321542,91000.0,90999.0,1.12788409]
[1745337572168,0.00844533,91000.0,90999.0,0.65818]
[1745337572468,0.1696,91000.0,90999.0,0.7679921]
[1745337572671,0.3486,91000.0,90999.0,0.7679921]
[1745337573071,0.3486,91000.0,90999.0,0.5393]
[1745337573272,0.3486,91000.0,90999.0,0.6491121]
[1745337573466,0.3486,91000.0,90999.0,0.5393]
[1745337573669,0.3486,91000.0,90999.0,0.5323]
[1745337574177,0.3568277,91000.0,90999.0,0.3638]
[1745337574970,0.4667197,91000.0,90999.0,0.3638]
[1745337575267,0.4667197,91000.0,90999.0,0.4736121]
[1745337575463,0.3568277,91000.0,90999.0,0.4736121]
[1745337575859,0.8568277,91000.0,90999.0,0.4736121]
[1745337576970,0.6778277,91000.0,90999.0,0.4736121]
[1745337577174,0.1778277,91000.0,90999.0,0.4736121]
[1745337577467,0.3511277,91000.0,90999.0,0.4736121]
[1745337579060,0.0082277,91000.0,90999.0,0.4736121]
[1745337579264,0.0001094,91001.0,91000.0,0.1098109]
[1745337580065,0.005,91019.0,91018.0,0.1097892]
[1745337580267,0.005,91019.0,91018.0,0.4705892]
[1745337580469,0.005,91019.0,91018.0,0.6344892]
[1745337580675,0.005,91019.0,91018.0,0.3608]
[1745337580969,0.01321415,91019.0,91018.0,0.39369263]
[1745337581274,0.007,91019.0,91018.0,0.50348183]
[1745337581565,0.007,91019.0,91018.0,0.50248183]
[1745337582271,0.008,91019.0,91018.0,0.50248183]
[1745337582472,0.008,91019.0,91018.0,0.57019263]
[1745337582665,0.008,91019.0,91018.0,0.67998183]
[1745337583068,0.008,91019.0,91018.0,0.03289263]
[1745337583270,0.37612351,91019.0,91001.0,0.3608]
[1745337583572,0.3608,91009.0,91001.0,0.3608]
[1745337583773,0.0549012,91007.0,91001.0,0.3608]
[1745337583968,0.0549072,90998.0,90970.0,0.3608]
[1745337584167,0.5581074,90997.0,90981.0,0.0549166]
[1745337584374,0.5032,90997.0,90983.0,0.0549155]
[1745337584567,0.5032,90997.0,90988.0,0.3608]
[1745337584771,0.5032,90997.0,90996.0,0.4706158]
[1745337585166,0.613096,90997.0,90996.0,0.4706158]
[1745337585363,0.3386,90997.0,90996.0,0.4706158]
[1745337586171,0.00016482,90998.0,90997.0,0.1098145]
[1745337586366,0.00016482,90998.0,90997.0,0.2777145]
[1745337586570,0.00016482,90998.0,90997.0,0.4572145]
[1745337587677,0.00016482,90998.0,90997.0,0.4602145]
[1745337587880,0.50016482,90998.0,90997.0,0.4602145]
[1745337588076,0.50016482,90998.0,90997.0,0.2807145]
[1745337588277,0.50016482,90998.0,90997.0,0.1779]
[1745337588480,0.50016482,90998.0,90997.0,0.003]
[1745337588779,0.61005682,90998.0,90997.0,0.003]
[1745337589281,0.61005682,90998.0,90997.0,0.1138145]
[1745337589480,0.61005682,90998.0,90997.0,0.003]
[1745337589782,0.61005682,90998.0,90997.0,0.004]
[1745337589973,0.61005682,90998.0,90997.0,0.001]
[1745337590177,0.61005682,90998.0,90997.0,0.1138145]
[1745337590577,0.61005682,90998.0,90997.0,0.004]
[1745337590873,0.50016482,90998.0,90997.0,0.1138145]
[1745337591375,0.50016482,90998.0,90997.0,0.4746145]
[1745337591877,0.50016482,90998.0,90997.0,0.4756145]
[1745337592269,0.50016482,90998.0,90997.0,0.6429145]
[1745337592468,0.50016482,90998.0,90997.0,0.5321]
[1745337592677,0.50016482,90998.0,90997.0,0.1713]
[1745337592873,0.50016482,90998.0,90997.0,0.2811145]
[1745337593379,0.50016482,90998.0,90997.0,0.5321]
[1745337593569,0.61005682,90998.0,90997.0,0.001]
[1745337593770,0.61005682,90998.0,90997.0,0.004]
[1745337594176,0.61005682,90998.0,90990.0,0.1689]
[1745337594375,0.3525,90997.0,90993.0,0.1098187]
[1745337594682,0.19738552,90998.0,90989.0,0.3608]
[1745337594876,0.16432807,90998.0,90992.0,0.3608]
[1745337595178,0.1753,90997.0,90996.0,0.1098158]
[1745337595382,0.5344,90997.0,90996.0,0.1098158]
[1745337595677,0.5344,90997.0,90991.0,0.1776]
[1745337596478,0.5344,90997.0,90996.0,0.003]
[1745337596677,0.644296,90997.0,90996.0,0.003]
[1745337597083,0.644296,90997.0,90989.0,0.3618]
[1745337597275,1.0344,90997.0,90996.0,0.1098158]
[1745337597679,1.0344,90997.0,90995.0,0.3443]
[1745337597882,0.3608,91069.0,90996.0,0.5994]
[1745337598082,0.3608,91069.0,91034.0,0.3608]
[1745337598379,0.1793,91048.0,91035.0,0.1787]
[1745337598578,0.5353,91048.0,91035.0,0.1787]
[1745337599074,0.003,91045.0,91035.0,0.2335842]
[1745337599279,0.003,91045.0,91044.0,0.1097579]
[1745337599981,0.003,91045.0,91043.0,0.17]
[1745337600296,0.3347,91044.0,91043.0,0.17]
[1745337600596,0.3347,91044.0,91042.0,0.3608]
[1745337600597,0.503,91045.0,91042.0,0.3608]
[1745337600786,0.1645,91043.0,91042.0,0.5308]
[1745337600981,0.1645,91043.0,91042.0,0.6405603]
[1745337601283,0.1645,91043.0,91042.0,0.4705603]
[1745337601878,0.6645,91043.0,91042.0,0.4685603]
[1745337602283,0.6655,91043.0,91042.0,0.4685603]
[1745337602485,0.8357,91043.0,91042.0,0.4685603]
[1745337603682,0.8357,91043.0,91042.0,0.4695603]
[1745337604281,0.8357,91043.0,91042.0,0.4685603]
[1745337604484,0.8347,91043.0,91042.0,0.4685603]
[1745337605189,0.5,91043.0,91042.0,0.4685603]
[1745337605390,0.5,91043.0,91042.0,0.6432603]
[1745337606284,0.5,91043.0,91042.0,0.4715603]
[1745337606485,0.5,91043.0,91042.0,0.6462603]
[1745337606989,0.5,91043.0,91042.0,0.6452603]
[1745337607184,0.5,91043.0,91042.0,0.4705603]
[1745337607692,0.5,91043.0,91040.0,0.1786]
[1745337607889,0.1097711,91033.0,91013.0,0.0548973]
[1745337608080,0.3608,91033.0,91009.0,0.0548996]
[1745337608388,0.3608,91033.0,90992.0,0.0564]
[1745337608389,0.3608,91010.0,90992.0,0.0549097]
[1745337608579,0.3608,90999.0,90992.0,0.03303183]
[1745337608894,0.1711,91009.0,90984.0,0.054915]
[1745337609085,0.1711,91009.0,90975.0,0.39421158]
[1745337609386,0.00016482,91006.0,91001.0,0.1098088]
[1745337609587,0.3608,91002.0,91001.0,0.1098093]
[1745337609786,0.3608,91002.0,90987.0,0.00016482]
[1745337609991,0.3608,91002.0,91001.0,0.1098097]
[1745337610187,0.3608,91002.0,90988.0,0.0549124]
[1745337610391,0.3608,91002.0,91001.0,0.1098097]
[1745337610591,0.3608,91002.0,90990.0,0.0549113]
[1745337610786,0.3608,91002.0,90999.0,0.1098121]
[1745337610988,0.00825913,91002.0,90999.0,0.1098118]
[1745337611189,0.00016482,91006.0,90989.0,0.192]
[1745337611385,0.3608,90998.0,90989.0,0.192]
[1745337611790,0.3608,90998.0,90990.0,0.001]
[1745337612179,0.3608,90998.0,90997.0,0.1098145]
[1745337612383,0.00836295,91002.0,90990.0,0.001]
[1745337612384,0.00836295,91002.0,91001.0,0.1098097]
[1745337612583,0.00016482,91006.0,91005.0,0.1098049]
[1745337613179,0.00016482,91006.0,91005.0,0.3018049]
[1745337613385,0.50116482,91006.0,91005.0,0.3018049]
[1745337614090,0.42868242,91006.0,91005.0,1.0294889]
[1745337614282,0.38294772,91006.0,91005.0,1.0294889]
[1745337614484,0.32014362,91006.0,91005.0,1.0294889]
[1745337614681,0.1713,91027.0,91018.0,0.1097892]
[1745337614890,0.1713,91027.0,91018.0,0.4705892]
[1745337615289,0.3608,91037.0,91018.0,0.7724572]
[1745337615893,0.3608,91045.0,91018.0,1.09768882]
[1745337616394,0.1699,91047.0,91018.0,1.08395577]
[1745337616395,0.3608,91042.0,91018.0,1.08395577]
[1745337616594,0.3608,91042.0,91018.0,0.97408777]
[1745337617091,0.3608,91042.0,91018.0,0.97908777]
[1745337617488,0.3608,91042.0,91018.0,0.97208777]
[1745337617699,0.3608,91034.0,91018.0,0.97808777]
[1745337617886,0.505,91019.0,91018.0,0.97808777]
[1745337618087,0.505,91019.0,91018.0,0.97508777]
[1745337619295,0.005,91049.0,91047.0,0.1097542]
[1745337619490,0.005,91049.0,91047.0,0.07020656]
[1745337619694,0.005,91049.0,91045.0,0.0548779]
[1745337619695,0.005,91049.0,91048.0,0.09052847]
[1745337620794,0.005,91049.0,91048.0,0.25742847]
[1745337621187,0.005,91049.0,91048.0,0.29045612]
[1745337621692,0.5,91049.0,91048.0,0.67048065]
[1745337621888,0.34532504,91049.0,91048.0,0.67048065]
[1745337622096,0.14777694,91049.0,91048.0,0.86248065]
[1745337622293,0.1796,91074.0,91073.0,0.1097229]
[1745337622493,0.2910765,91075.0,91074.0,0.1097217]
[1745337622999,0.005,91079.0,91078.0,0.1097169]
[1745337623196,0.0004,91095.0,91094.0,0.1096976]
[1745337623897,0.18,91095.0,91094.0,0.1096976]
[1745337624288,0.54907997,91095.0,91094.0,0.142963]
[1745337624489,0.18827997,91095.0,91094.0,0.142963]
[1745337624688,0.50867997,91095.0,91094.0,0.142963]
[1745337625089,0.86947997,91095.0,91094.0,0.142963]
[1745337625291,0.50867997,91095.0,91094.0,0.0332654]
[1745337625489,0.50867997,91095.0,91085.0,0.00016472]
[1745337625690,0.3514,91094.0,91093.0,0.1096988]
[1745337626492,0.3514,91094.0,91093.0,0.09597511]
[1745337627004,0.3514,91094.0,91085.0,0.0339938]
[1745337627489,0.3608,91086.0,91064.0,0.0548665]
[1745337627690,0.3608,91086.0,91081.0,0.0548565]
[1745337627691,0.5102,91085.0,91081.0,0.0548565]
[1745337627887,0.5102,91085.0,91077.0,0.054859]
[1745337628088,0.3608,91084.0,91075.0,0.03237347]
[1745337628293,0.3608,91084.0,91018.0,0.5858]
[1745337628294,0.3608,91076.0,91074.0,0.1097215]
[1745337628487,0.1766,91075.0,91074.0,0.1097215]
[1745337628689,0.3389,91075.0,91074.0,0.1097215]
[1745337629092,0.3389,91075.0,91074.0,0.1427221]
[1745337629801,0.8389,91075.0,91074.0,0.1163643]
[1745337630193,0.8389,91075.0,91074.0,0.1133643]
[1745337631000,0.8389,91075.0,91074.0,0.1103643]
[1745337631699,0.8399,91075.0,91074.0,0.1103643]
[1745337632001,0.4599625,91075.0,91074.0,0.1103643]
[1745337632299,0.4599625,91075.0,91074.0,0.1093643]
[1745337632300,0.4609625,91075.0,91074.0,0.1093643]
[1745337632693,0.22903251,91075.0,91074.0,0.8299643]
[1745337632896,0.09498691,91075.0,91074.0,0.8299643]
[1745337633101,0.002,91075.0,91074.0,1.0219643]
[1745337633296,0.00016441,91089.0,91088.0,0.1097103]
[1745337633998,0.00016441,91089.0,91088.0,0.1087103]
[1745337634797,1e-08,91089.0,91088.0,0.1087103]
[1745337635195,0.00200001,91089.0,91088.0,0.1087103]
[1745337635403,0.50200001,91089.0,91088.0,0.1087103]
[1745337635607,0.00827997,91095.0,91091.0,0.0548513]
[1745337635810,0.3608,91106.0,91091.0,0.0548513]
[1745337635811,0.3608,91106.0,91105.0,0.1096864]
[1745337636103,0.3608,91141.0,91100.0,0.3608]
[1745337636294,0.3419,91137.0,91125.0,0.0548353]
[1745337636494,0.3608,91132.0,91118.0,0.13308]
[1745337636695,0.3391,91131.0,91123.0,0.3608]
[1745337636902,0.3608,91124.0,91118.0,0.13308]
[1745337637094,1.0311,91131.0,91118.0,0.13308]
[1745337637496,0.3608,91129.0,91118.0,0.13308]
[1745337637703,0.3391,91128.0,91118.0,0.13308]
[1745337637901,0.3471712,91128.0,91121.0,0.0548375]
[1745337638093,0.3471712,91128.0,91127.0,0.1096689]
[1745337638493,0.7079712,91128.0,91127.0,0.08332706]
[1745337638705,0.5,91125.0,91118.0,0.12608]
[1745337638896,0.3608,91119.0,91118.0,0.2357597]
[1745337639101,0.3608,91119.0,91118.0,0.1096797]
[1745337640205,0.3608,91119.0,91116.0,0.00016462]
[1745337640404,0.4984,91118.0,91117.0,0.1096809]
[1745337640605,0.4984,91118.0,91117.0,0.09595921]
[1745337641496,0.4984,91118.0,91090.0,0.3608]
[1745337641800,0.3608,91095.0,91084.0,0.13304]
[1745337642006,0.3608,91092.0,91084.0,0.13304]
[1745337642205,0.3424,91091.0,91087.0,0.00127313]
[1745337642402,0.3424,91091.0,91074.0,0.04086913]
[1745337642609,0.3608,91077.0,91072.0,0.0548672]
[1745337642798,0.333,91076.0,91073.0,0.00016462]
[1745337643001,0.333,91076.0,91075.0,0.1097315]
[1745337644302,0.833,91076.0,91075.0,0.1147315]
[1745337644917,0.833,91076.0,91075.0,0.1187315]
[1745337645598,0.833,91076.0,91075.0,0.1117315]
[1745337645799,0.84118029,91076.0,91075.0,0.1117315]
[1745337646307,0.43074339,91076.0,91075.0,0.4715315]
[1745337646508,0.00016428,91092.0,91091.0,0.1097122]
[1745337646704,0.30616428,91106.0,91105.0,0.1096953]
[1745337647409,0.00804618,91106.0,91105.0,0.1096953]
[1745337647708,0.3608,91129.0,91108.0,0.1096917]
[1745337648011,0.3608,91120.0,91108.0,0.1096917]
[1745337648198,0.0130923,91109.0,91108.0,0.1096917]
[1745337648501,0.5130923,91109.0,91108.0,0.2194517]
[1745337648904,0.5130923,91109.0,91108.0,0.5802517]
[1745337649208,0.5130923,91109.0,91108.0,0.7722517]
[1745337649617,0.32442935,91109.0,91108.0,0.7722517]
[1745337649809,0.02330565,91109.0,91108.0,0.7722517]
[1745337650213,0.1667,91132.0,91131.0,0.109664]
[1745337650399,0.3275,91132.0,91131.0,0.109664]
[1745337650598,0.65808142,91132.0,91127.0,0.054834]
[1745337650798,0.65808142,91132.0,91131.0,0.109664]
[1745337651414,0.65808142,91132.0,91131.0,0.09594508]
[1745337651908,0.98808142,91132.0,91131.0,0.09594508]
[1745337652110,0.66872066,91132.0,91131.0,0.09594508]
[1745337652414,1.16872066,91132.0,91131.0,0.13676113]
[1745337652608,1.50002066,91132.0,91123.0,0.1629]
[1745337652810,1.50002066,91132.0,91123.0,0.31346815]
[1745337652811,0.6976826,91124.0,91123.0,0.31346815]
[1745337653108,0.6976826,91124.0,91123.0,0.15056815]
[1745337653699,0.6976826,91124.0,91123.0,0.31346815]
[1745337654008,1.1976826,91124.0,91123.0,0.31346815]
[1745337654207,1.1976826,91124.0,91123.0,0.48066815]
[1745337654607,1.1976826,91124.0,91123.0,0.45532644]
[1745337655406,1.1976826,91124.0,91123.0,0.12622644]
[1745337656010,1.1976826,91124.0,91123.0,0.15256815]
[1745337656412,1.1976826,91124.0,91123.0,0.04289445]
[1745337656605,1.3708826,91124.0,91123.0,0.15256815]
[1745337656801,1.3708426,91124.0,91123.0,0.15256815]
[1745337657005,1.3708426,91124.0,91123.0,0.04289445]
[1745337657617,1.3708426,91124.0,91123.0,0.15256815]
[1745337657914,1.3708426,91124.0,91112.0,0.054843]
[1745337658111,0.3608,91116.0,91112.0,0.04150773]
[1745337658304,0.5879581,91113.0,91112.0,0.0548434]
[1745337658504,0.5879581,91113.0,91112.0,0.1645303]
[1745337658700,0.5879581,91113.0,91112.0,0.20475534]
[1745337659105,0.5879581,91113.0,91112.0,0.09506844]
[1745337659303,0.5879581,91113.0,91112.0,0.62066844]
[1745337659515,0.9314581,91113.0,91112.0,0.79656844]
[1745337659913,0.9314581,91113.0,91112.0,0.04022504]
[1745337660214,0.9314581,91113.0,91112.0,0.1106869]
[1745337660215,1.4842581,91113.0,91112.0,0.1106869]
[1745337660514,1.4842581,91113.0,91112.0,0.1126869]
[1745337660712,1.4842581,91113.0,91112.0,0.003]
[1745337661014,1.9842581,91113.0,91112.0,0.15314101]
[1745337661314,1.7922581,91113.0,91112.0,0.13393009]
[1745337661810,1.7922581,91113.0,91112.0,0.12020806]
[1745337662010,1.9020141,91113.0,91104.0,0.0548482]
[1745337662208,0.3608,91105.0,91090.0,0.0548564]
[1745337662512,0.9487581,91091.0,91090.0,0.1382168]
[1745337662820,0.5879581,91091.0,91090.0,0.1382168]
[1745337663110,0.5879581,91091.0,91090.0,0.179861]
[1745337663711,0.5879581,91091.0,91090.0,0.1097134]
[1745337663912,0.5879581,91091.0,91089.0,0.1097144]
[1745337664118,0.3534,91090.0,91089.0,0.07018028]
[1745337664411,0.9413581,91090.0,91088.0,0.0548574]
[1745337664623,1.1913581,91090.0,91072.0,0.0548675]
[1745337664815,0.3608,91078.0,91077.0,0.1097291]
[1745337665010,0.4534759,91078.0,91077.0,0.1097291]
[1745337665205,0.2298289,91078.0,91077.0,0.4705291]
[1745337665413,0.3534,91083.0,91082.0,0.109723]
[1745337665613,0.3608,91121.0,91087.0,0.054858]
[1745337665918,0.3608,91122.0,91090.0,0.31735864]
[1745337666213,0.3608,91131.0,91130.0,0.1046653]
[1745337666617,0.72053201,91131.0,91130.0,0.1046653]
[1745337666815,0.47053201,91131.0,91130.0,0.1046653]
[1745337667005,0.3608,91131.0,91130.0,0.0996653]
[1745337667210,0.66253201,91131.0,91130.0,0.0996653]
[1745337667414,1.16253201,91131.0,91130.0,0.0946653]
[1745337667608,1.16753201,91131.0,91130.0,0.0946653]
[1745337667921,1.16753201,91131.0,91121.0,0.00016462]
[1745337668116,0.1773,91130.0,91121.0,0.00016462]
[1745337668413,0.3608,91122.0,91121.0,0.04042274]
[1745337668610,0.18549172,91130.0,91121.0,0.00016462]
[1745337668814,0.5,91126.0,91121.0,0.00016462]
[1745337669113,0.3465,91125.0,91121.0,0.00016462]
[1745337669318,0.3465,91125.0,91121.0,0.04067164]
[1745337669621,0.5,91126.0,91123.0,0.3608]
[1745337669818,0.47864976,91126.0,91124.0,0.1652]
[1745337670006,0.48164976,91126.0,91124.0,0.3475]
[1745337670412,0.48564976,91126.0,91124.0,0.3475]
[1745337670811,0.48264976,91126.0,91124.0,0.3475]
[1745337671516,0.02782926,91126.0,91125.0,0.24249999]
[1745337672021,0.02382926,91126.0,91125.0,0.42479999]
[1745337672418,0.00819172,91130.0,91125.0,0.42479999]
[1745337672722,0.1676,91138.0,91126.0,0.3608]
[1745337673019,0.1676,91138.0,91134.0,0.3608]
[1745337673218,0.5,91131.0,91126.0,0.3608]
[1745337673520,0.5,91131.0,91127.0,0.1748]
[1745337673908,0.5,91131.0,91127.0,0.16108271]
[1745337674112,0.5,91131.0,91128.0,0.10973599]
[1745337674322,0.5,91131.0,91128.0,0.11973599]
[1745337674517,0.5,91131.0,91129.0,0.109732]
[1745337674717,0.50827597,91131.0,91129.0,0.287532]
[1745337674919,0.50827597,91131.0,91130.0,0.109732]
[1745337675125,0.49307539,91131.0,91130.0,0.109732]
[1745337675321,0.49307539,91131.0,91130.0,0.119732]
[1745337675618,0.29826669,91131.0,91130.0,0.119732]
[1745337675816,0.24552669,91131.0,91130.0,0.119732]
[1745337676215,0.24352669,91131.0,91130.0,0.119732]
[1745337676411,0.24041234,91131.0,91130.0,0.14952]
[1745337676613,0.24241234,91131.0,91130.0,0.14952]
[1745337677019,0.01027597,91131.0,91130.0,0.14952]
[1745337677219,0.002,91131.0,91130.0,0.33202]
[1745337677419,0.002,91131.0,91130.0,0.14952]
[1745337678023,0.002,91131.0,91130.0,0.13952]
[1745337678321,0.50943529,91131.0,91130.0,0.13952]
[1745337678523,0.501,91131.0,91124.0,0.13952]
[1745337678723,0.3409,91130.0,91122.0,0.13952]
[1745337679122,0.3409,91130.0,91123.0,0.12220001]
[1745337679422,0.3409,91130.0,91123.0,0.27125994]
[1745337679823,0.3409,91130.0,91123.0,0.09585994]
[1745337680021,0.5,91127.0,91123.0,0.09585994]
[1745337680321,0.3365,91126.0,91117.0,0.00016462]
[1745337680527,0.3608,91123.0,91117.0,0.13968462]
[1745337680723,0.3365,91122.0,91105.0,0.13952]
[1745337680918,0.3365,91122.0,91105.0,0.55092]
[1745337681223,0.1801,91121.0,91105.0,0.4114]
[1745337681427,0.5,91114.0,91105.0,0.4114]
[1745337681825,0.3396,91113.0,91105.0,0.4114]
[1745337682135,0.3396,91113.0,91112.0,0.3608]
[1745337682425,0.5,91114.0,91112.0,0.3608]
[1745337682625,0.502,91114.0,91112.0,0.3608]
[1745337682928,0.3481,91113.0,91105.0,0.4114]
[1745337683323,0.3608,91106.0,91105.0,0.4114]
[1745337683921,0.3608,91106.0,91101.0,0.02836325]
[1745337684120,0.3608,91106.0,91100.0,0.00016462]
[1745337684121,0.5256,91105.0,91100.0,0.00016462]
[1745337684333,0.3608,91103.0,91077.0,0.50032]
[1745337684524,0.3608,91089.0,91077.0,0.50032]
[1745337684718,0.3608,91079.0,91067.0,0.13952]
[1745337684918,0.3608,91068.0,91061.0,0.7722]
[1745337685120,0.3608,91068.0,91060.0,0.14116722]
[1745337685121,0.3541,91067.0,91060.0,0.14116722]
[1745337685426,0.1764,91067.0,91060.0,0.14116722]
[1745337685622,0.5,91065.0,91060.0,0.18215416]
[1745337685829,0.1764,91064.0,91060.0,0.18215416]
[1745337686032,0.1764,91064.0,91061.0,0.1824]
[1745337686532,0.1717,91063.0,91061.0,0.009]
[1745337686922,0.1764,91062.0,91061.0,0.009]
[1745337687224,0.478216,91062.0,91061.0,0.009]
[1745337687423,0.478216,91062.0,91050.0,0.33954559]
[1745337687732,0.1717,91061.0,91050.0,0.33954559]
[1745337687930,0.1717,91061.0,91050.0,0.32032379]
[1745337688127,0.1719,91060.0,91050.0,0.32032379]
[1745337688335,0.3608,91051.0,91037.0,0.13956]
[1745337688526,0.48625864,91050.0,91037.0,0.13956]
[1745337688725,0.5111,91050.0,91037.0,0.18094703]
[1745337688920,0.3608,91043.0,91037.0,0.18094703]
[1745337689127,0.337,91042.0,91037.0,0.18094703]
[1745337689932,0.3608,91039.0,91016.0,0.3608]
[1745337690125,0.3608,91023.0,91016.0,0.43168336]
[1745337690427,0.337,91022.0,91016.0,0.43168336]
[1745337690821,0.337,91022.0,91016.0,0.61318336]
[1745337691130,0.5,91020.0,91016.0,0.43168336]
[1745337691329,0.3416,91019.0,91016.0,0.43168336]
[1745337692028,0.5,91020.0,91016.0,0.43168336]
[1745337692223,0.00824163,91022.0,91017.0,0.291368]
[1745337692429,0.00016472,91028.0,91019.0,0.3608]
[1745337692627,0.00016472,91028.0,91027.0,0.3608]
[1745337692823,0.00016472,91028.0,91019.0,0.3608]
[1745337693023,0.00016472,91028.0,91019.0,0.3808]
[1745337693227,0.001,91020.0,91019.0,0.3808]
[1745337693424,0.001,91020.0,91019.0,0.3608]
[1745337693629,0.001,91020.0,91017.0,0.005]
[1745337693824,0.001,91020.0,91016.0,0.04888336]
[1745337693825,0.1731,91019.0,91016.0,0.04888336]
[1745337694024,0.3454,91019.0,91016.0,0.04888336]
[1745337694224,0.5374,91019.0,91016.0,0.008]
[1745337694822,0.5,91018.0,91016.0,0.008]
[1745337695230,0.5,91018.0,91017.0,0.3608]
[1745337695430,0.5,91018.0,91017.0,0.51733126]
[1745337695627,0.5,91018.0,91017.0,0.52733126]
[1745337696229,0.501,91018.0,91017.0,0.71933126]
[1745337696524,0.501,91018.0,91017.0,0.53643126]
[1745337696724,0.5,91018.0,91017.0,0.53643126]
[1745337697131,0.5,91018.0,91017.0,0.50803126]
[1745337697332,0.5,91018.0,91017.0,0.34443126]
[1745337697730,0.5,91018.0,91017.0,0.34643126]
[1745337698029,0.5,91018.0,91017.0,0.33643126]
[1745337698231,0.5,91018.0,91017.0,0.002]
[1745337698837,0.501,91018.0,91016.0,0.4114]
[1745337699033,0.337,91017.0,91016.0,0.4114]
[1745337699726,1.0075,91017.0,91016.0,0.4114]
[1745337700333,1.0085,91017.0,91016.0,0.4114]
[1745337700533,0.501,91017.0,91016.0,0.7722]
[1745337700735,0.1765,91048.0,91016.0,1.347572]
[1745337701038,0.1697,91047.0,91038.0,0.3598]
[1745337701236,0.1697,91047.0,91039.0,0.5869]
[1745337701431,0.1697,91047.0,91039.0,0.7736]